Cogmind - Beta 16.1 @@@ ROGUE MODE // 2026.04.18 @ 14:42:40 Player: osman sinnoks Result: Destroyed by as-63336 with Assembled Blade Performance ------------- Evolutions (0) 0 Regions Visited (2) 400 Robots Destroyed (17) 85 Value Destroyed (354) 354 Prototype IDs (2) 40 Alien Tech Used (0) 0 Bonus (0) 0 TOTAL SCORE: 879 Bonus ------- None Cogmind --------- Core Integrity 0/250 Matter 300/300 Energy 250/250 System Corruption 0% Temperature Cool (0) Movement Core (200) Ox3 Location -10/Mines Parts ------- > --- POWER (1) -------- Ion Engine > --- PROPULSION (2) --- (None) > --- UTILITY (2) ------ Small Storage Unit > --- WEAPON (2) ------- Light Assault Rifle > --- INVENTORY (8) ---- Aluminum Leg Aluminum Leg Aluminum Leg Aluminum Leg Signal Interpreter EM Pulse Gun Small Laser Peak State ------------ > --- POWER ------------ Ion Engine > --- PROPULSION ------- Aluminum Leg Aluminum Leg > --- UTILITY ---------- Small Storage Unit Seismic Detector > --- WEAPON ----------- Medium Laser Grenade Launcher > --- INVENTORY -------- EM Pulse Gun Light Assault Rifle [Rating: 7] Favorites ----------- Power Ion Engine Engine Ion Engine Propulsion Aluminum Leg Leg Aluminum Leg Utility Small Storage Unit Device Seismic Detector Storage Small Storage Unit Protection Light Armor Plating Weapon Medium Laser Energy Gun Medium Laser Ballistic Gun Light Assault Rifle Launcher Grenade Launcher Build | -11 -10 -10 ------- Run | Yrd Mat Min Slots Evolved . | . . . Power . | . . . Propulsion . | . . . Utility . | . . . Weapon . | . . . Parts Attached 14 | 6 8 . Power 3 | . 3 . Engine 3 | . 3 . Core . | . . . Reactor . | . . . Propulsion 4 | 2 2 . Treads . | . . . Leg 4 | 2 2 . Wheel . | . . . Hover . | . . . Flight . | . . . Utility 3 | 2 1 . Device 1 | 1 . . Storage 1 | 1 . . Processor . | . . . Hackware . | . . . Protection 1 | . 1 . Artifact . | . . . Weapon 4 | 2 2 . Energy Gun 2 | 1 1 . Energy Cannon . | . . . Ballistic Gun 1 | 1 . . Ballistic Cannon . | . . . Launcher 1 | . 1 . Special Weapon . | . . . Impact Weapon . | . . . Slashing Weapon . | . . . Piercing Weapon . | . . . Special Melee Weapon . | . . . Unidentified Prototypes . | . . . Parts Lost 8 | . 4 4 Power 2 | . 2 . Propulsion 2 | . . 2 Utility 2 | . 1 1 Weapon 2 | . 1 1 Highest Loss Streak 4 | . 2 4 To Critical Strikes . | . . . Average Backups 3 | 1 3 7 Power . | . . . Propulsion 1 | . 1 4 Utility . | . . 1 Weapon 1 | . 1 2 Tool/Special . | . . . Unused Backups 4 | . . 4 Power . | . . . Propulsion 2 | . . 2 Utility 1 | . . 1 Weapon 1 | . . 1 Tool/Special . | . . . Average Slot Usage (%) 90 | . 91 88 Engine 8 | . 8 14 Leg 26 | . 27 20 Device 9 | . 9 . Storage 14 | . 14 14 Protection 3 | . 3 12 Energy Gun 9 | . 10 . Ballistic Gun 9 | . 9 14 Launcher 7 | . 7 12 Peak Build Rating 7 | 6 7 7 Average Rating 6 | 3 6 6 On Entrance 4 | . 6 7 Avg Prop Armor Cover (%) . | . . . Naked Turns . | . . . Heaviest Build 17 | 9 17 17 Greatest Support 20 | 20 20 20 Greatest Overweight (x) 4 | . 1 4 Average Overweight (x) . | . . . Largest Inventory Capacity 8 | 8 8 8 Average Capacity 7 | 6 8 8 Most Carried 8 | 5 8 7 Average Carried 3 | 2 3 7 Final Capacity 8 | 8 8 8 Final Carried 7 | 2 7 7 Class Distribution -------------------- 97% | Mutant Dominant Class ---------------- Mutant | -10/Materials Mutant | -10/Mines Resources | -11 -10 -10 ----------- Run | Yrd Mat Min Matter Collected 542 | 262 280 . Remotely . | . . . Salvage Created 431 | 17 414 . Parts 30 | 2 28 . Haulers Intercepted . | . . . Recyclers Shooed . | . . . Parts Field Recycled . | . . . Retrieved Matter . | . . . Parts Self-Destructed . | . . . Prevented . | . . . Parts Restored . | . . . Kills | -11 -10 -10 ------- Run | Yrd Mat Min Combat Hostiles Destroyed 11 | . 10 1 Guns 7 | . 7 . AOE 4 | . 3 1 Classes Destroyed 8 | 1 6 1 Worker 2 | . 2 . Tunneler 1 | 1 . . Recycler 1 | . 1 . Mechanic 1 | . 1 . Watcher 2 | . 2 . Swarmer 3 | . 3 . Grunt 7 | . 7 . Assembled 1 | . . 1 Best Kill Streak 6 | 1 6 1 Combat Bots Only 4 | . 4 1 Max Kills in Single Turn 2 | 1 2 1 Gunslinging . | . . . Exploded 1 | . 1 1 Melee . | . . . Uniques/NPCs Destroyed . | . . . Combat | -11 -10 -10 -------- Run | Yrd Mat Min Hostile Shots Fired 75 | . 58 17 Missed 20 | . 17 3 Hits 55 | . 41 14 Melee 6 | . . 6 Projectile 49 | . 41 8 AOE 4 | . . 4 Critical Strikes 1 | . 1 . Damage Taken 978 | . 558 420 Core 260 | . 116 144 Absorbed by Shields . | . . . Core Remaining (%) 100 | 100 . . Volleys Fired 63 | 2 60 1 Largest 2 | 2 2 2 Hottest 80 | 70 80 50 Shots Fired 113 | 4 107 2 Gun 106 | 4 101 1 Cannon . | . . . Launcher 7 | . 6 1 Special . | . . . Kinetic 53 | 2 50 1 Thermal 51 | 2 49 . Explosive 7 | . 6 1 Electromagnetic 2 | . 2 . Robot Hit Streak 12 | 3 12 . Robot Miss Streak 4 | . 3 4 Penetration Max . | . . . Secondary Targets 1 | . 1 . Max Gunslinging Chain 1 | . 1 . Shots Hit Robots 72 | 3 69 . Core Hits 34 | 2 31 1 Critical Kills . | . . . Critical Parts Destroyed . | . . . Critical Strikes 2 | . 2 . Burn 2 | . 2 . Melee Attacks . | . . . Impact . | . . . Slashing . | . . . Piercing . | . . . Sneak Attacks . | . . . Combat Hostiles . | . . . Follow-up Attacks . | . . . Damage Inflicted 1119 | 33 1076 10 Guns 743 | 33 710 . Cannons . | . . . Explosions 376 | . 366 10 Melee . | . . . Ramming . | . . . Kinetic 291 | 8 283 . Thermal 452 | 25 427 . Explosive 376 | . 366 10 Electromagnetic . | . . . Impact . | . . . Slashing . | . . . Piercing . | . . . Highest Corruption . | . . . Average Corruption . | . . . Corruption Purged . | . . . Corruption Blocked . | . . . Overload Shots . | . . . Overflow Damage 42 | . 42 . Projectiles . | . . . Explosions 42 | . 42 . Melee . | . . . Knockbacks . | . . . Impact . | . . . Kinetic . | . . . Secondary . | . . . Self-Inflicted Damage 72 | . 34 38 Shots 2 | . 1 1 Rammed . | . . . Targets Rammed . | . . . Kicked . | . . . Crushed . | . . . Highest Temperature 243 | 20 243 16 Average Temperature 70 | 15 72 12 Received Heat Transfer 288 | . 279 9 Siege Activations . | . . . Martial Activations . | . . . Shielding Activations . | . . . Robots Disrupted . | . . . Combat Hostiles . | . . . Robots Corrupted . | . . . Combat Hostiles . | . . . Parts Fried . | . . . Impact Corruptions . | . . . Robots Melted . | . . . Combat Hostiles . | . . . Parts Melted . | . . . Heat Transferred 1480 | 74 1406 . Parts Sabotaged . | . . . Parts Stolen . | . . . Parts Stripped . | . . . Power Chain Reactions . | . . . Alert | -11 -10 -10 ------- Run | Yrd Mat Min Maximum Alert Level . | . . . Low Security (%) 100 | 100 100 100 Level 1 . | . . . Level 2 . | . . . Level 3 . | . . . Level 4 . | . . . Level 5 . | . . . High Security . | . . . Max Security . | . . . Peak Influence 113 | . 113 31 Initial 31 | . . 31 Average 28 | . 30 13 Influence Increases 362 | 5 348 9 Destroy 0b10 Robot/C 200 | . 200 . Destroy 0b10 Robot/NC 35 | 5 30 . Destroy Leader 44 | . 44 . Successful Hack 20 | . 20 . Destroy Structure 33 | . 24 9 Lose Combat Pursuer 30 | . 30 . Influence Decreases 362 | 5 265 92 Entered New Map 52 | . . 52 Time Decay 251 | 5 225 21 Lost Part 59 | . 40 19 Squads Dispatched 1 | . 1 . Investigation . | . . . Extermination . | . . . Reinforcement 1 | . 1 . Assault . | . . . Garrison . | . . . Intercept . | . . . Searches Triggered . | . . . Construction Impeded . | . . . Haulers Reinforced . | . . . Active Scanning Responses . | . . . Cargo Convoy Interrupts . | . . . Stealth | -11 -10 -10 --------- Run | Yrd Mat Min Distress Signals 4 | . 4 . Communications Jammed . | . . . Distress Signals . | . . . Times Spotted 37 | . 21 16 Peak Tracking Total 20 | . 4 20 Tactical Retreats 5 | . 3 2 Traps | -11 -10 -10 ------- Run | Yrd Mat Min Traps Triggered 3 | . 3 . Indirectly . | . . . Trap Hack Attempts . | . . . Triggered . | . . . Disarmed . | . . . Reprogrammed . | . . . Reused . | . . . Traps Extracted . | . . . Installed . | . . . Triggered . | . . . Machines | -11 -10 -10 ---------- Run | Yrd Mat Min Machines Disabled . | . . . Max in Single Turn . | . . . Machines Repaired . | . . . Machines Dismantled . | . . . Machines Sabotaged . | . . . Overloaded Fab Kills . | . . . Hacking | -11 -10 -10 --------- Run | Yrd Mat Min Machines Accessed 5 | . 5 . Terminals 5 | . 5 . Fabricators . | . . . Repair Stations . | . . . Recycling Units . | . . . Scanalyzers . | . . . Garrison Access . | . . . Total Hacks 12 | . 12 . Successful 6 | . 6 . Failed 6 | . 6 . Catastrophic . | . . . Database Lockouts . | . . . Manual 8 | . 8 . Terminals 12 | . 12 . Fabricators . | . . . Repair Stations . | . . . Recycling Units . | . . . Scanalyzers . | . . . Garrison Access . | . . . Terminal Hacks 2 | . 2 . Prototype ID Bank 1 | . 1 . Emergency Access Points 1 | . 1 . Fabricator Hacks . | . . . Repair Station Hacks . | . . . Recycling Unit Hacks . | . . . Scanalyzer . | . . . Garrison Access Hacks . | . . . Unauthorized Hacks 4 | . 4 . Terminals 4 | . 4 . Botnet 4 | . 4 . Fabricators . | . . . Repair Stations . | . . . Recycling Units . | . . . Scanalyzers . | . . . Garrison Access . | . . . Data Cores Recovered . | . . . Used . | . . . Hacking Detections 5 | . 5 . Full Trace Events . | . . . Feedback Events . | . . . Feedback Blocked . | . . . Robot Schematics Acquired . | . . . Robots Built . | . . . Authchips . | . . . Time . | . . . Total Robot Build Rating . | . . . Part Schematics Acquired . | . . . Parts Built . | . . . Authchips . | . . . Time . | . . . Total Part Build Rating . | . . . Part Studies Acquired . | . . . Parts Repaired . | . . . Time . | . . . Parts Recycled . | . . . Recycled Matter . | . . . Retrieved Matter . | . . . Retrieved Components . | . . . Parts Scanalyzed . | . . . Part Schematics Acquired . | . . . Parts Damaged . | . . . Bothacking | -11 -10 -10 ------------ Run | Yrd Mat Min Used RIF Installer . | . . . Robots Hacked . | . . . Non-combat . | . . . Combat . | . . . Robot Hacks Applied . | . . . Relay Couplers Released . | . . . Fabnet Peak Effective % . | . . . Robots Rewired . | . . . Allies Hacked . | . . . Hacks Repelled . | . . . Allies | -11 -10 -10 -------- Run | Yrd Mat Min Total Allies . | . . . Largest Group . | . . . Highest-Rated Group . | . . . Highest-Rated Ally . | . . . Total Orders . | . . . Ally Attacks . | . . . Total Damage . | . . . Kills . | . . . Allies Corrupted . | . . . Allies Melted . | . . . Intel | -11 -10 -10 ------- Run | Yrd Mat Min Active Infowar (turns) 731 | 24 707 . Seismic 731 | 24 707 . Robot Analysis Total . | . . . Derelict Logs Recovered . | . . . Drone Launches . | . . . Drone Recoveries . | . . . Exploration | -11 -10 -10 ------------- Run | Yrd Mat Min Turns Passed 1132 | 52 997 83 Spaces Moved 598 | 43 500 55 Core 38 | 26 5 7 Treads . | . . . Legs 560 | 17 495 48 Wheels . | . . . Hover . | . . . Flight . | . . . Fastest Speed 50 | 50 100 120 Average Speed 119 | 77 119 147 Slowest Speed 250 | 120 120 250 Overloaded Moves . | . . . Propulsion Burnouts . | . . . Robots Hopped . | . . . Potential Cave-ins . | . . . Cave-ins Triggered . | . . . Exploration Rate (%) 27 | 3 67 12 Regions Visited 2 Branch Regions 1 Pre-discovered Areas . | . . . Known Exits Taken . | . . . Unknown Exits Taken 2 | 1 1 . Scrap Searched . | . . . Spaces Dug . | . . . Terrain Destroyed 31 | . 22 9 Melee . | . . . Projectile . | . . . AOE 31 | . 22 9 Terrain Rammed . | . . . Walls Destroyed . | . . . Machines Disabled . | . . . Actions | -11 -10 -10 --------- Run | Yrd Mat Min Total 912 | 57 799 56 Wait 202 | . 202 . Move 596 | 42 499 55 Hop . | . . . Pick Up 25 | 7 18 . Fast Attach 1 | 1 . . Attach 19 | 5 14 . Detach 1 | . 1 . Swap 5 | . 5 . Drop . | . . . Fire 63 | 2 60 1 Melee . | . . . Ram . | . . . Kick . | . . . Crush . | . . . Escape Stasis . | . . . Rewire . | . . . Trap . | . . . Miscellaneous . | . . . Route ------- -11/Scrapyard -10/Materials (discovered 2 exits: [*Mat] / [*Min]) -10/Mines (discovered 1 exit: [*Mat]) History --------- Turn | Location | Event 12 | -11/Scrapyard | Discovered new exit (range 16) 53 | -11/Scrapyard | Entered Materials 201 | -10/Materials | Discovered new exit (range 7) 301 | -10/Materials | Build established: Mutant 473 | -10/Materials | Discovered new exit (range 13) 653 | -10/Materials | Derelicts attacked the area 1050 | -10/Materials | Entered Mines 1068 | -10/Mines | Discovered new exit (range 11) 1081 | -10/Mines | Assembled infested the area 1086 | -10/Mines | Assisted by a Guerilla fighting off Assembled 1095 | -10/Mines | Core integrity fell below 50% 1100 | -10/Mines | Met a Derelict bent on vengeance 1130 | -10/Mines | Core integrity fell below 20% 1133 | -10/Mines | Destroyed by as-63336 with Assembled Blade Last Messages --------------- 01097_ as-31763 destroyed. 01098_ D-53 Grenadier knocked back. 01099_ The unstable cave ceiling collapses. 01099_ as-94808 destroyed. 01099_ as-66325 destroyed. 01099_ D-53 Grenadier destroyed. 01100_ The unstable cave ceiling collapses. 01100_ K-01 Serf collects debris. 01102_ The unstable cave ceiling collapses. 01103_ as-32093 destroyed. 01103_ K-01 Serf collects debris. 01104_ The unstable cave ceiling collapses. 01104_ K-01 Serf collects debris. 01105_ The unstable cave ceiling collapses. 01105_ D-53 Grenadier destroyed. 01108_ K-01 Serf destroyed. 01115_ as-82091 destroyed. 01120_ Aluminum Leg destroyed. 01120_ Lgt. Armor Plating destroyed. 01122_ Grenade Launcher destroyed. Map ----- +----------------------------------------------------+ | | | | | | | | | | | | | | | | | | | | | | | | | | | | | | | | | | | | | ??????????????????????????????????? | | ??????????????????????????????????? | | ???????????????????#############??? | | ?????????????????? #??? | | ??????????????????""" """ #??? | | ??????????????????""" """ #??? | | ??????????????""" """ """ #??? | | ????????????# g @ #??? | | ??????????????""" """ """a #??? | | ??????????????????""" """a #??? | | ??????????????""" """ """ #??? | | ????????????# g #??? | | ???????????????############ ####??? | | ?????????????????????????# #????? | | ?????????????????????????# #????? | | ?????????????????????????# a #????? | | ?????????????????????????# #????? | | ?????????????????????????## #????? | | ??????????????????????????# ##????? | | ??????????????????????????#=#?????? | | ??????????????????????#####%###???? | | ????????????##????????# #*!= #???? | | ????????????# #### #???? | | ???????????# < = ##??? | | ???????????? ##### | %= #??? | | ??????????????????????# *%! #??? | | ????????????????????? =% #??? | | ???????????????????? % #??? | | ??????????######## ##??? | | ??????? %!* % ##???? | | ??????? = #????? | | ?????????????## ## # ##????? | +----------------------------------------------------+ Best States ------------- Heat Dissipation 25 Energy Generation 10 Energy Capacity 250 Matter Stores 300 Matter Capacity 300 Sight Range 16 Terrain Scan Density 10 Armor Coverage 150 Evasion (%) 55 Item Schematics ----------------- None Robot Schematics ------------------ None Fabricated ------------ Nothing Repaired ---------- Nothing Studied --------- None Alien Tech Used ----------------- None Achievements -------------- None Challenges ------------ None Game ------ Seed LightFocalCore Manual? 0 Play Time 00:11:14 Cumulative 34.0 hours Start 2026.04.18 @ 14:31:10 End 2026.04.18 @ 14:42:40 Sessions 1 Manual Loads 0 Difficulty Rogue Special Mode None Game No. 76 Rogue 76 Adventurer 0 Explorer 0 Win Type - Total 0 Types 0/0/0/0/0/0/0/0/0/0 Lore% 28 Gallery% 29 Achievement% 19 Wizard Run 0 Options --------- Layout 2 ASCII 0 Keyboard 0 Movement Mouse Keybinds 0 Fullscreen 1 Font 24/Smallcaps Map View 50x49 Zoom Use 0% Tactical HUD 1 Map Filters NONE Filters NONE Steam 1 RUN: dc2ffaa9-316c-49b3-942b-1b7162e964fe